Cogmind - Beta 16.1 @@@ ROGUE MODE // 2026.02.11 @ 21:19:46 Player: Gamma Result: Destroyed by HI-SDD(g) with Salvaging Laser Performance ------------- Evolutions (0) 0 Regions Visited (3) 600 Robots Destroyed (20) 100 Value Destroyed (598) 598 Prototype IDs (10) 200 Alien Tech Used (0) 0 Bonus (800) 800 TOTAL SCORE: 2298 Bonus ------- Registered with UFD 300 Met Optimus in HQ 500 Cogmind --------- Core Integrity 0/250 Matter 296/300 Energy 249/250 System Corruption 0% Temperature Cool (18) Movement Treading (160) Location -9/Scraptown Parts ------- > --- POWER (1) -------- Ion Engine > --- PROPULSION (2) --- Light Treads Spiked Treads > --- UTILITY (2) ------ Large Storage Unit Makeshift Light Armor Plating > --- WEAPON (2) ------- Autogun Overtuned Barrage Gun > --- INVENTORY (15) --- Light Ion Engine Light Treads Overtuned Treads Scrap Suit Scrap Suit Cooling System Disposable Heat Sink Advanced Visual Processing Unit Terrain Scanner Light EM Pulse Cannon Grenade Launcher DRS Beacon (Ready) Peak State ------------ > --- POWER ------------ Ion Engine > --- PROPULSION ------- Light Treads Spiked Treads > --- UTILITY ---------- Large Storage Unit A0-MCA's Component Scanner > --- WEAPON ----------- Autogun Battle Rifle > --- INVENTORY -------- Light Ion Engine Light Treads Aluminum Leg Aluminum Leg Scrap Suit Scrap Suit Cooling System Disposable Heat Sink Advanced Visual Processing Unit Terrain Scanner Light EM Pulse Cannon Grenade Launcher DRS Beacon [Rating: 21] Favorites ----------- Power Ion Engine Engine Ion Engine Power Core Light Nuclear Core Propulsion Light Treads Treads Light Treads Utility Medium Storage Unit Device Improved Heat Sink Storage Medium Storage Unit Processor A0-MCA's Component Scanner Protection Makeshift Light Armor Plating Weapon Autogun Energy Gun Medium Laser Ballistic Gun Autogun Launcher Grenade Launcher Build | -11 -10 -10 -9 ------- Run | Yrd Mat Sub Scr Slots Evolved . | . . . . Power . | . . . . Propulsion . | . . . . Utility . | . . . . Weapon . | . . . . Parts Attached 21 | 6 4 4 7 Power 3 | 1 1 1 . Engine 2 | 1 . 1 . Core 1 | . 1 . . Reactor . | . . . . Propulsion 4 | 2 . 1 1 Treads 4 | 2 . 1 1 Leg . | . . . . Wheel . | . . . . Hover . | . . . . Flight . | . . . . Utility 6 | 1 2 . 3 Device 1 | . 1 . . Storage 3 | 1 1 . 1 Processor 1 | . . . 1 Hackware . | . . . . Protection 1 | . . . 1 Artifact . | . . . . Weapon 8 | 2 1 2 3 Energy Gun 2 | 2 . . . Energy Cannon . | . . . . Ballistic Gun 5 | . . 2 3 Ballistic Cannon . | . . . . Launcher 1 | . 1 . . Special Weapon . | . . . . Impact Weapon . | . . . . Slashing Weapon . | . . . . Piercing Weapon . | . . . . Special Melee Weapon . | . . . . Unidentified Prototypes . | . . . . Parts Lost 9 | . . 8 1 Power 1 | . . 1 . Propulsion 2 | . . 2 . Utility 1 | . . 1 . Weapon 5 | . . 4 1 Highest Loss Streak 5 | . . 5 1 To Critical Strikes . | . . . . Average Backups 8 | 2 5 9 9 Power . | . 1 . . Propulsion 3 | 1 2 5 3 Utility 2 | . . 1 3 Weapon 1 | . 1 1 1 Tool/Special . | . . . . Unused Backups 16 | . 1 1 14 Power 1 | . . . 1 Propulsion 7 | . 1 1 5 Utility 7 | . . . 7 Weapon 1 | . . . 1 Tool/Special . | . . . . Average Slot Usage (%) 85 | . 86 77 85 Engine 12 | . 12 . 14 Treads 26 | . 28 16 27 Device 1 | . 1 13 . Storage 14 | . 14 14 14 Processor 1 | . . . 2 Energy Gun 9 | . 27 15 . Ballistic Gun 15 | . . 7 24 Launcher 1 | . . 4 1 Peak Build Rating 21 | 6 11 11 21 Average Rating 9 | 4 6 8 11 On Entrance 5 | . 6 11 4 Avg Prop Armor Cover (%) . | . . . . Naked Turns . | . . . . Heaviest Build 35 | 13 19 19 35 Greatest Support 40 | 40 40 40 40 Greatest Overweight (x) . | . . . . Average Overweight (x) . | . . . . Largest Inventory Capacity 15 | 8 10 10 15 Average Capacity 11 | 6 8 10 12 Most Carried 15 | 4 9 10 15 Average Carried 8 | 2 5 9 10 Final Capacity 15 | 8 10 10 15 Final Carried 14 | 4 9 6 14 Class Distribution -------------------- 63% | Mutant 36% | Derelict-Mutant Dominant Class ---------------- Mutant | -10/Materials Mutant | -10/Subcaves Derelict-Mutant | -9/Scraptown Resources | -11 -10 -10 -9 ----------- Run | Yrd Mat Sub Scr Matter Collected 716 | 184 156 71 305 Remotely . | . . . . Salvage Created 623 | . 397 106 120 Parts 29 | . 22 1 6 Haulers Intercepted 1 | . 1 . . Recyclers Shooed 1 | . 1 . . Parts Field Recycled . | . . . . Retrieved Matter . | . . . . Parts Self-Destructed . | . . . . Prevented . | . . . . Parts Restored . | . . . . Kills | -11 -10 -10 -9 ------- Run | Yrd Mat Sub Scr Combat Hostiles Destroyed 17 | . 10 4 3 Guns 9 | . 5 1 3 AOE 8 | . 5 3 . Classes Destroyed 9 | . 5 1 3 Worker 1 | . 1 . . Hauler 1 | . 1 . . Watcher 1 | . 1 . . Swarmer 3 | . 3 . . Grunt 7 | . 7 . . Subdweller 4 | . . 4 . Federalist 1 | . . . 1 Explorer 1 | . . . 1 Guru 1 | . . . 1 Best Kill Streak 5 | . 5 2 2 Combat Bots Only 5 | . 5 2 2 Max Kills in Single Turn 2 | . 2 1 2 Gunslinging 1 | . . . 1 Exploded 2 | . 2 1 . Melee . | . . . . Uniques/NPCs Destroyed . | . . . . Combat | -11 -10 -10 -9 -------- Run | Yrd Mat Sub Scr Hostile Shots Fired 120 | . 40 32 48 Missed 37 | . 10 8 19 Hits 83 | . 30 24 29 Projectile 83 | . 30 24 29 AOE 1 | . . 1 . Critical Strikes 4 | . . 1 3 Damage Taken 1424 | . 407 549 468 Core 258 | . 72 112 74 Absorbed by Shields . | . . . . Core Remaining (%) 100 | 100 . . . Volleys Fired 89 | . 37 29 23 Largest 2 | . 2 2 2 Hottest 90 | . 90 90 53 Shots Fired 161 | . 70 48 43 Gun 151 | . 67 41 43 Cannon . | . . . . Launcher 10 | . 3 7 . Special . | . . . . Kinetic 69 | . . 26 43 Thermal 82 | . 67 15 . Explosive 10 | . 3 7 . Electromagnetic . | . . . . Robot Hit Streak 12 | . 6 12 8 Robot Miss Streak 5 | . 2 2 5 Penetration Max . | . . . . Secondary Targets 2 | . 1 . 1 Max Gunslinging Chain 1 | . 1 . 1 Shots Hit Robots 104 | . 43 35 26 Core Hits 45 | . 23 12 10 Critical Kills 1 | . . . 1 Critical Parts Destroyed . | . . . . Critical Strikes 4 | . 2 1 1 Burn 3 | . 2 1 . Destroy 1 | . . . 1 Melee Attacks . | . . . . Impact . | . . . . Slashing . | . . . . Piercing . | . . . . Sneak Attacks . | . . . . Combat Hostiles . | . . . . Follow-up Attacks . | . . . . Damage Inflicted 1837 | . 747 639 451 Guns 1304 | . 504 349 451 Cannons . | . . . . Explosions 533 | . 243 290 . Melee . | . . . . Ramming . | . . . . Kinetic 661 | . . 210 451 Thermal 643 | . 504 139 . Explosive 533 | . 243 290 . Electromagnetic . | . . . . Impact . | . . . . Slashing . | . . . . Piercing . | . . . . Highest Corruption . | . . . . Average Corruption . | . . . . Corruption Purged . | . . . . Corruption Blocked . | . . . . Overload Shots . | . . . . Overflow Damage 23 | . 16 7 . Projectiles . | . . . . Explosions 23 | . 16 7 . Melee . | . . . . Knockbacks . | . . . . Impact . | . . . . Kinetic . | . . . . Secondary . | . . . . Self-Inflicted Damage 37 | . 11 26 . Shots 3 | . 1 2 . Rammed . | . . . . Targets Rammed . | . . . . Kicked . | . . . . Crushed . | . . . . Highest Temperature 309 | . 309 . 191 Average Temperature 97 | . 103 . 88 Received Heat Transfer 558 | . 219 18 321 Siege Activations . | . . . . Martial Activations . | . . . . Shielding Activations . | . . . . Robots Disrupted . | . . . . Combat Hostiles . | . . . . Robots Corrupted . | . . . . Combat Hostiles . | . . . . Parts Fried . | . . . . Impact Corruptions . | . . . . Robots Melted . | . . . . Combat Hostiles . | . . . . Parts Melted 2 | . 2 . . Heat Transferred 1943 | . 1486 457 . Parts Sabotaged . | . . . . Parts Stolen . | . . . . Parts Stripped . | . . . . Power Chain Reactions . | . . . . Alert | -11 -10 -10 -9 ------- Run | Yrd Mat Sub Scr Maximum Alert Level . | . . . . Low Security (%) 100 | 100 100 . . Level 1 . | . . . . Level 2 . | . . . . Level 3 . | . . . . Level 4 . | . . . . Level 5 . | . . . . High Security . | . . . . Max Security . | . . . . Peak Influence 123 | . 123 . . Initial . | . . . . Average 31 | . 34 . . Influence Increases 367 | . 367 . . Destroy 0b10 Robot/C 200 | . 200 . . Destroy 0b10 Robot/NC 15 | . 15 . . Destroy Leader 54 | . 54 . . Successful Hack 24 | . 24 . . Destroy Structure 14 | . 14 . . Partial Spotted 15 | . 15 . . Lose Combat Pursuer 45 | . 45 . . Influence Decreases 367 | . 345 22 . Entered New Map 11 | . . 11 . Time Decay 356 | . 345 11 . Squads Dispatched 1 | . 1 . . Investigation 1 | . 1 . . Extermination . | . . . . Reinforcement . | . . . . Assault . | . . . . Garrison . | . . . . Intercept . | . . . . Searches Triggered . | . . . . Construction Impeded . | . . . . Haulers Reinforced . | . . . . Active Scanning Responses . | . . . . Cargo Convoy Interrupts . | . . . . Stealth | -11 -10 -10 -9 --------- Run | Yrd Mat Sub Scr Distress Signals 1 | . 1 . . Communications Jammed . | . . . . Distress Signals . | . . . . Times Spotted 36 | . 16 5 15 Peak Tracking Total 6 | . 5 2 6 Tactical Retreats 2 | . 2 . . Traps | -11 -10 -10 -9 ------- Run | Yrd Mat Sub Scr Traps Triggered 2 | . 2 . . Indirectly . | . . . . Trap Hack Attempts . | . . . . Triggered . | . . . . Disarmed . | . . . . Reprogrammed . | . . . . Reused . | . . . . Traps Extracted . | . . . . Installed . | . . . . Triggered . | . . . . Machines | -11 -10 -10 -9 ---------- Run | Yrd Mat Sub Scr Machines Disabled . | . . . . Max in Single Turn . | . . . . Machines Repaired . | . . . . Machines Dismantled . | . . . . Machines Sabotaged . | . . . . Overloaded Fab Kills . | . . . . Hacking | -11 -10 -10 -9 --------- Run | Yrd Mat Sub Scr Machines Accessed 19 | . 8 . 11 Terminals 8 | . 8 . . Fabricators . | . . . . Repair Stations . | . . . . Recycling Units . | . . . . Scanalyzers . | . . . . Garrison Access . | . . . . Total Hacks 90 | . 24 . 66 Successful 78 | . 12 . 66 Failed 11 | . 11 . . Catastrophic 1 | . 1 . . Database Lockouts 1 | . 1 . . Manual 10 | . 10 . . Terminals 24 | . 24 . . Fabricators . | . . . . Repair Stations . | . . . . Recycling Units . | . . . . Scanalyzers . | . . . . Garrison Access . | . . . . Terminal Hacks 75 | . 9 . 66 Record 61 | . . . 61 Robot Analysis 7 | . 2 . 5 Prototype ID Bank 1 | . 1 . . Branch Access Points 1 | . 1 . . Locate Traps 1 | . 1 . . Transport Status 1 | . 1 . . Zone Layout 3 | . 3 . . Fabricator Hacks . | . . . . Repair Station Hacks . | . . . . Recycling Unit Hacks . | . . . . Scanalyzer . | . . . . Garrison Access Hacks . | . . . . Unauthorized Hacks 3 | . 3 . . Terminals 3 | . 3 . . Track 2 | . 2 . . Botnet 1 | . 1 . . Fabricators . | . . . . Repair Stations . | . . . . Recycling Units . | . . . . Scanalyzers . | . . . . Garrison Access . | . . . . Data Cores Recovered . | . . . . Used . | . . . . Hacking Detections 6 | . 6 . . Full Trace Events . | . . . . Feedback Events . | . . . . Feedback Blocked . | . . . . Robot Schematics Acquired . | . . . . Robots Built . | . . . . Authchips . | . . . . Time . | . . . . Total Robot Build Rating . | . . . . Part Schematics Acquired . | . . . . Parts Built . | . . . . Authchips . | . . . . Time . | . . . . Total Part Build Rating . | . . . . Part Studies Acquired . | . . . . Parts Repaired . | . . . . Time . | . . . . Parts Recycled . | . . . . Recycled Matter . | . . . . Retrieved Matter . | . . . . Retrieved Components . | . . . . Parts Scanalyzed . | . . . . Part Schematics Acquired . | . . . . Parts Damaged . | . . . . Bothacking | -11 -10 -10 -9 ------------ Run | Yrd Mat Sub Scr Used RIF Installer . | . . . . Robots Hacked . | . . . . Non-combat . | . . . . Combat . | . . . . Robot Hacks Applied . | . . . . Relay Couplers Released . | . . . . Fabnet Peak Effective % . | . . . . Robots Rewired . | . . . . Allies Hacked . | . . . . Hacks Repelled . | . . . . Allies | -11 -10 -10 -9 -------- Run | Yrd Mat Sub Scr Total Allies . | . . . . Largest Group . | . . . . Highest-Rated Group . | . . . . Highest-Rated Ally . | . . . . Total Orders . | . . . . Ally Attacks . | . . . . Total Damage . | . . . . Kills . | . . . . Allies Corrupted . | . . . . Allies Melted 4 | . . . 4 Intel | -11 -10 -10 -9 ------- Run | Yrd Mat Sub Scr Active Infowar (turns) . | . . . . Robot Analysis Total 7 | . 2 . 5 Derelict Logs Recovered 1 | . . . 1 Drone Launches . | . . . . Drone Recoveries . | . . . . Exploration | -11 -10 -10 -9 ------------- Run | Yrd Mat Sub Scr Turns Passed 3563 | 61 916 388 2198 Spaces Moved 2009 | 37 464 185 1323 Core 12 | 12 . . . Treads 1997 | 25 464 185 1323 Legs . | . . . . Wheels . | . . . . Hover . | . . . . Flight . | . . . . Fastest Speed 50 | 50 160 160 160 Average Speed 159 | 124 160 160 160 Slowest Speed 160 | 160 160 160 160 Overloaded Moves . | . . . . Propulsion Burnouts . | . . . . Robots Hopped . | . . . . Potential Cave-ins . | . . . . Cave-ins Triggered . | . . . . Exploration Rate (%) 45 | 3 78 17 84 Regions Visited 3 Branch Regions 2 Pre-discovered Areas 1 | . . 1 . Known Exits Taken . | . . . . Unknown Exits Taken 3 | 1 1 1 . Scrap Searched 5 | . . 1 4 Spaces Dug . | . . . . Terrain Destroyed 56 | . 19 37 . Melee . | . . . . Projectile . | . . . . AOE 56 | . 19 37 . Terrain Rammed . | . . . . Walls Destroyed . | . . . . Machines Disabled . | . . . . Actions | -11 -10 -10 -9 --------- Run | Yrd Mat Sub Scr Total 2224 | 52 568 232 1372 Wait 60 | . 54 6 . Move 2006 | 36 463 184 1323 Hop . | . . . . Pick Up 33 | 10 6 3 14 Fast Attach 3 | . 1 . 2 Attach 15 | 6 . 5 4 Detach . | . . . . Swap 9 | . 4 4 1 Drop 9 | . 3 1 5 Fire 89 | . 37 29 23 Melee . | . . . . Ram . | . . . . Kick . | . . . . Crush . | . . . . Escape Stasis . | . . . . Rewire . | . . . . Trap . | . . . . Miscellaneous . | . . . . Route ------- -11/Scrapyard -10/Materials (discovered 4 exits: [*Mat x2] / *Min / [*Sub]) -10/Subcaves -9/Scraptown (discovered 1 exit: [*Fac]) History --------- Turn | Location | Event 8 | -11/Scrapyard | Discovered new exit (range 16) 62 | -11/Scrapyard | Entered Materials 178 | -10/Materials | Identified exit to Mines 308 | -10/Materials | Build established: Mutant 342 | -10/Materials | Central database locked down 382 | -10/Materials | Discovered new exit (range 7) 764 | -10/Materials | Discovered new exit (range 11) 967 | -10/Materials | Discovered new exit (range 8) 978 | -10/Materials | Entered Subcaves 979 | -10/Subcaves | Approached by a straggling Scientist 1007 | -10/Subcaves | Learned location of Zion (-7) 1007 | -10/Subcaves | Met a Zionite searching for "candidates" 1008 | -10/Subcaves | A swath of the cavern ceiling suddenly collapsed 1132 | -10/Subcaves | Lost 3 parts (1p1n1w) 1313 | -10/Subcaves | Ambushed by Subdwellers from Twisted Machinery 1315 | -10/Subcaves | Core integrity fell below 50% 1332 | -10/Subcaves | Scientist uncovered a shortcut to Scraptown 1366 | -10/Subcaves | Entered Scraptown 1375 | -9/Scraptown | Lost 5 parts (1n1u3w) 1915 | -9/Scraptown | Heard Great Nut preacher, LISTEN AND RECITE! 1929 | -9/Scraptown | Visited UFD Registry 1952 | -9/Scraptown | Registered with UFD as "Shockhacker" 1963 | -9/Scraptown | Visited Artisan Demo Area 2069 | -9/Scraptown | Visited TADAMA 2105 | -9/Scraptown | Visited Cave Peace 2209 | -9/Scraptown | Scanned Subdweller tech in exchange for log data 2214 | -9/Scraptown | Learned location of 1 exit from Factory 2235 | -9/Scraptown | Discovered new exit (range 13) 2281 | -9/Scraptown | Guru changed UFD alias to "Matrixguard" 2568 | -9/Scraptown | Build established: Derelict-Mutant 2580 | -9/Scraptown | Visited Cyclists 2604 | -9/Scraptown | Entered Cyclist Reading Room 2636 | -9/Scraptown | Visited CPS Storage 2737 | -9/Scraptown | Visited Comm Corps 2827 | -9/Scraptown | Visited Symbiants 2992 | -9/Scraptown | Visited Derelict Rescue Squad 3006 | -9/Scraptown | Found DRS Beacon 3058 | -9/Scraptown | Visited A0-MCA Data Center 3068 | -9/Scraptown | Given an A- rating by A0-MCA 3074 | -9/Scraptown | Found A0-MCA's Component Scanner 3108 | -9/Scraptown | Visited Analyses Database 3195 | -9/Scraptown | Met Optimus 3195 | -9/Scraptown | Accepted into 0bPrime 3321 | -9/Scraptown | Visited Scrap Suit Storage 3337 | -9/Scraptown | Found Scrap Suit 3340 | -9/Scraptown | Found Scrap Suit 3421 | -9/Scraptown | Visited Curators Association 3434 | -9/Scraptown | Civil war broke out across Scraptown 3474 | -9/Scraptown | Core integrity fell below 20% 3518 | -9/Scraptown | Lost 9 allies 3564 | -9/Scraptown | Destroyed by HI-SDD(g) with Salvaging Laser Last Messages --------------- 03532_ 1C-9A8(x) destroyed. 03533_ Bolt penetrates 8I-ZKK(j). 03534_ 8I-ZKK(j) overheating. 03534_ 8I-ZKK(j) destroyed. 03539_ Ovr. Barrage Gun suddenly begins malfunctioning. 03542_ Acquired 55 matter. 03543_ Acquired 36 matter. 03547_ Critical hit (Burn: +50). 03548_ Bolt penetrates Y5-7FI(j). 03549_ Machine disabled. 03553_ Bolt penetrates Y5-7FI(j). 03557_ Bolt penetrates Machine. 03557_ Bolt penetrates Y5-7FI(j). 03557_ AX-09T(h) suffers critical hit (Destroy). 03560_ Bolt penetrates Y5-7FI(j). 03560_ AX-09T(h) destroyed. 03561_ Bolt penetrates A6-HWJ(E). 03563_ EC-J89(h) destroyed. 03563_ Y5-7FI(j) destroyed. Map ----- +----------------------------------------------------+ | ?????????????????????????????????????????????????? | | ?????????????????????????????????????????????????? | | ?????????????????????????????????????????????????? | | ?????????????????????????????????????????????????? | | ?????????????????????????????????????????????????? | | ???????????????????????? ???????????????????????? | | ???????????????????????? ???????????????????????? | | ???#########???????????? ???????????????????????? | | ??#"""""""""#??????????? #??????????????????????? | | ??#"""""""""#??????????# #??????????????????????? | | ??#"""""""""#??????????#=%#??????????????????????? | | ??#"""""""""#?#########![!#??????????????????????? | | ??#""" """#?#""""""""# =####?#?#???????????????? | | ??#""" """#?#" X " ""#[%#[!#]?[#???????????????? | | ??#""" "!"#?#" ""#= # =#]! ????????????????? | | ??#"""" """#?#"" """#%!# !# ?????????????????? | | ??#""" """#?# ;=%# =! ??????????????????? | | ??#" #?# #%*# ! ???????????????????? | | ??#### ######?#### #####!!##[#???????????????????? | | ###### ########### #####![## ##??????????????????? | | """""" """"""""""" """"%=%"" "#??????????????????? | | =!*!!=! "#??????????????????? | | !%[ !%[* "#??? "?????????????? | | !=!%! #?? "?????????????? | | ! ## "?????????????? | | @ % "?????????????? | | """"""""""""""""""""" "" jEE&## "?????????????? | | """""""""""""""""""""""" "#?? ??????????? | | #### ################"" = #???"""""""????????? | | ##????????#"" !%"##########?????????? | | X"#????????#"" !* ## #"""""#?????????? | | "" "" ##????????#"" "## !! !!#?????????? | | "" "" X"#??????###"" "## ##"#??????? | | " " #########%="! ## X" #??????? | | "" !*!!/%/ j!=%= #??????? | | "" [%!=!!% g%!## #??????? | | " " ########![#"" *= ## !! !#??????? | | "" "" ""#?????#### jj"## #"""""#""#??????? | | "" "" ##????????# " "#############??????? | | X"#????????#" "#??????????????????? | | ##????????#"" "#??????????????????? | | #### ################" "#?####?????????????? | | """""""??""""""""""""""" ! "##" #####?????????? | | """""""""""" """"""""""" %= " #????????? | | % % ! ##" #?????????? | | = * ##" #???????? | | [[! #? ####???????? | | = !==#? #????????? | | *! %#?? #???????? | | """""""" """"" """"" """ !##?? ###???????? | +----------------------------------------------------+ Best States ------------- Heat Dissipation 39 Energy Generation 14 Energy Capacity 250 Matter Stores 300 Matter Capacity 300 Sight Range 16 Terrain Scan Density 10 Armor Coverage 100 Evasion (%) 50 Recoil Reduction 2 Item Schematics ----------------- None Robot Schematics ------------------ None Fabricated ------------ Nothing Repaired ---------- Nothing Studied --------- None Alien Tech Used ----------------- None Achievements -------------- Bob, First Of His Name Civilization 2243 Link The Feds Longdome?! Nice Directions, Buddy Challenges ------------ None Game ------ Seed ChargeRecoilMagmablaster Manual? 0 Play Time 00:49:32 Cumulative 58.5 hours Start 2026.02.11 @ 20:23:44 End 2026.02.11 @ 21:19:46 Sessions 1 Manual Loads 0 Difficulty Rogue Special Mode None Game No. 43 Rogue 43 Adventurer 0 Explorer 0 Win Type - Total 1 Types 1/0/0/0/0/0/0/0/0/0 Lore% 35 Gallery% 36 Achievement% 24 Wizard Run 0 Options --------- Layout 1 ASCII 1 Keyboard 0 Movement Mouse Keybinds 0 Fullscreen 1 Font 32/Tamsyn Map View 50x35 Zoom Use 0% Tactical HUD 1 Map Filters NONE Filters NONE Steam 1 RUN: abc05f89-0c58-4d72-ab9e-05f8129b7a2f